[Event "Israel Team Championship 2025"]
[Site "Israel"]
[Date "2025.01.18"]
[Round "4"]
[White "Raznikov, Danny"]
[Black "Bronstein, Or"]
[Result "1/2-1/2"]
[Annotator "TA"]
[ECO "D38"]
[WhiteElo "2466"]
[BlackElo "2452"]
[PlyCount "95"]
[EventDate "2025.01.07"]
[EventType "team-tourn"]
[EventCountry "ISR"]
[SourceTitle "playchess.com"]
[Source "ChessBase"]
[SourceQuality "1"]
[TimeControl "40/5400+30:1800+30"]

{[%evp 11,95,17,19,16,53,0,14,0,23,19,27,20,22,9,25,12,12,-7,12,0,36,31,29,11,35,41,47,48,39,55,51,54,88,67,92,91,112,79,85,63,121,105,121,85,90,61,46,47,70,68,68,69,81,67,64,31,26,25,14,22,24,30,31,16,29,19,18,16,13,9,1,0,0,0,14,16,16,16,28,50,52,0,17,0,60,0]} 1. d4 Nf6 2. Nf3 d5 3. c4 e6 4. Nc3 Bb4 5. Qa4+ Nc6 6. e3 O-O 7. Qc2 Na5 8. cxd5 exd5 9. a3 Bd6 10. Bd3 Re8 11. O-O Bg4 12. Nd2 Nc6 {[%cal Ba5c6,Bc6e7,Be7g6,Bg6h4][%mdl 32]} 13. b4 Bh5 14. b5 Ne7 15. a4 Bg6 16. Ba3 Rc8 17. Rfc1 Bxd3 18. Qxd3 Ng6 19. Bxd6 Qxd6 20. Ne2 Ng4 21. Ng3 Nh4 22. Ndf1 g6 23. h3 Nf6 24. Rc5 Nd7 25. Rc3 {[%cal Bc5c3,Bc3b3,Bb3b5][%mdl 32]} Re7 (25... c5 $14) 26. a5 $16 c5 27. bxc6 Rxc6 28. Rb1 Nf6 29. Rcb3 Rcc7 30. Nd2 Qc6 31. Rb5 Qc2 32. Qxc2 Rxc2 33. Ngf1 (33. Rxb7 $2 {is the wrong capture.} Rxb7 34. Rxb7 Rxd2 $19) 33... Ra2 34. R1b2 Rxb2 35. Rxb2 Nf5 36. Nb3 Nd6 37. Nc5 Rc7 38. Nd2 Kf8 39. f3 Nd7 40. Nxd7+ Rxd7 $11 {[%mdl 4096] Endgame KRN-KRN} 41. Kf2 Rc7 42. e4 dxe4 43. fxe4 a6 44. Rb6 Nc8 45. Rb4 Nd6 46. Rb6 Nc8 47. Rb4 Nd6 {Prevents Rc4} 48. Rb6 (48. e5 $14 Nf5 49. g4) 1/2-1/2

[Event "Israel Team Championship 2025"]
[Site "Israel"]
[Date "2025.01.18"]
[Round "4"]
[White "Grinberg, Eyal"]
[Black "Zemach, Nadav"]
[Result "0-1"]
[Annotator "TA"]
[ECO "C84"]
[WhiteElo "2464"]
[BlackElo "2408"]
[PlyCount "108"]
[EventDate "2025.01.07"]
[EventType "team-tourn"]
[EventCountry "ISR"]
[SourceTitle "playchess.com"]
[Source "ChessBase"]
[SourceQuality "1"]
[TimeControl "40/5400+30:1800+30"]

{[%evp 16,108,0,4,22,2,22,0,23,18,24,0,3,3,11,18,10,13,23,15,60,22,32,18,47,30,36,37,56,16,18,16,19,18,18,13,18,14,22,10,58,64,62,15,5,5,12,0,3,0,20,0,0,0,10,0,0,0,2,4,2,4,3,0,0,0,0,0,0,0,14,8,41,12,46,4,13,8,17,17,27,4,23,7,18,16,44,48,56,57,51,18,95,-1268,-1212]} 1. e4 e5 2. Nf3 Nc6 3. Bb5 {[%cal Bf1b5,Bb5a4,Ba4b3][%mdl 32]} a6 4. Ba4 Nf6 5. Nc3 Be7 6. O-O b5 7. Bb3 d6 8. h3 O-O 9. a3 {[%cal Ba2a3,Ba3a4][%mdl 32]} h6 10. Re1 Re8 11. Nd5 Be6 12. c3 Bf8 13. a4 Bxd5 14. exd5 Ne7 15. d4 $1 e4 16. Nd2 {[%cal Bf3d2,Bd2e4,Be4g3][%mdl 32]} Nexd5 {[#]} 17. Nxe4 $1 c6 (17... Rxe4 18. Rxe4) 18. Ng3 Qd7 19. Bd2 g6 20. Qf3 (20. Rxe8 {simplifies} Rxe8 21. axb5 axb5 22. Ra6) 20... Bg7 21. Ne4 Kh7 22. h4 Nxe4 23. Rxe4 Rxe4 24. Qxe4 Re8 25. Qf3 Nf6 26. axb5 axb5 27. Bc2 d5 (27... h5 $1 $11 {is more appropriate.}) 28. h5 $14 Ne4 29. Be3 (29. hxg6+ $14 fxg6 30. Bf4) 29... g5 $11 30. g4 Kg8 31. Kg2 Bf8 32. Re1 {[%cal Ba1e1,Be1e2,Be2a2,Ba2a8][%mdl 32]} Nd6 33. b3 Bg7 {[%cal Ob5b4]} 34. Re2 Re7 35. Bd3 Qe8 36. Ra2 Qd7 37. Ra8+ Re8 38. Rxe8+ Qxe8 39. Qd1 Qe6 40. Qf3 Kf8 41. Bh7 Ke8 42. Kf1 Kd8 43. Qe2 Kc7 44. f3 Kb7 {[%cal Ob5b4]} 45. Qd3 Qe7 46. Kf2 Qf6 47. Qc2 Bf8 48. Kg2 Be7 49. Bf2 Bd8 50. Qe2 Qg7 51. Bd3 Bc7 $1 52. Qe7 Nc8 53. Qd7 {Strongly threatening Bg3. Black is weak on the light squares} Qf8 (53... Nb6 $11 {keeps the balance.} 54. Qe8 Qf6) 54. Bf5 $2 {[%mdl 8192]} (54. Bxb5 $16 cxb5 55. Qxd5+ Ka7 (55... Kb6 56. c4 $16) 56. Qxb5) 54... Nb6 0-1

[Event "Israel Team Championship 2025"]
[Site "Israel"]
[Date "2025.01.18"]
[Round "4"]
[White "Dvoirys, Semen I."]
[Black "Manor, Ilan"]
[Result "1-0"]
[Annotator "TA"]
[ECO "B33"]
[WhiteElo "2462"]
[BlackElo "2470"]
[PlyCount "87"]
[EventDate "2025.01.07"]
[EventType "team-tourn"]
[EventCountry "ISR"]
[SourceTitle "playchess.com"]
[Source "ChessBase"]
[SourceQuality "1"]
[TimeControl "40/5400+30:1800+30"]

{[%evp 32,87,12,15,29,18,16,20,23,16,15,14,27,41,65,77,86,84,95,100,91,87,85,89,87,93,84,79,187,185,197,194,235,201,249,304,304,305,292,302,302,218,587,548,898,637,649,645,630,619,579,586,583,568,766,766,957,855]} 1. e4 c5 2. Nf3 Nc6 3. d4 cxd4 4. Nxd4 Nf6 5. Nc3 e5 6. Ndb5 {[%cal Bd4b5,Bb5a3,Ba3c2,Bc2e3,Be3d5][%mdl 32]} d6 7. Bg5 a6 8. Na3 b5 9. Bxf6 gxf6 10. Nd5 f5 11. c3 Bg7 12. exf5 Bxf5 13. Nc2 O-O 14. a4 Ne7 15. Nce3 Be6 16. Be2 Nxd5 17. Nxd5 bxa4 18. Rxa4 a5 19. O-O Rb8 20. b4 axb4 21. cxb4 Kh8 22. b5 Qc8 23. Qd2 {White is more active.} Qc5 24. Rd1 {[%cal Bf1d1,Bd1c1,Bc1c3][%mdl 32]} f5 25. Ra6 (25. Ra5 {simplifies} Bxd5 26. Qxd5 Qxd5 27. Rxd5 Rfc8 28. g3) 25... e4 26. Nf4 $36 {[%csl LRd6,LRe6][%mdl 2048] White is on the roll.} Bb3 27. Rc1 (27. Qxd6 Qxd6 28. Rdxd6 Be5 $17) 27... Qd4 28. Rxd6 Qxd2 29. Rxd2 Bh6 (29... Be5 $16 {keeps fighting.} 30. g3 Rbc8 31. Rxc8 Rxc8) 30. g3 $18 {[%cal Bg2g3,Bg3f4][%mdl 32]} Rg8 31. Kf1 Rg7 32. Rc3 Bf7 33. Rd6 Bxf4 34. gxf4 Rg6 35. Rdc6 Kg7 36. Rc8 Rb7 $2 (36... Rgb6 37. Ke1 Rxb5) 37. R8c7 Rbb6 38. R3c5 Rgf6 39. Bc4 Kf8 40. Rxf7+ Rxf7 41. Bxf7 Kxf7 42. Rxf5+ Kg6 43. Re5 Rd6 44. Rxe4 1-0

[Event "Israel Team Championship 2025"]
[Site "Israel"]
[Date "2025.01.18"]
[Round "4"]
[White "Zifroni, Dov"]
[Black "Greenfeld, Alon"]
[Result "0-1"]
[Annotator "TA"]
[ECO "D40"]
[WhiteElo "2458"]
[BlackElo "2469"]
[PlyCount "66"]
[EventDate "2025.01.07"]
[EventType "team-tourn"]
[EventCountry "ISR"]
[SourceTitle "playchess.com"]
[Source "ChessBase"]
[SourceQuality "1"]
[TimeControl "40/5400+30:1800+30"]

{[%evp 11,66,0,26,7,6,-2,12,8,6,8,10,28,28,26,18,3,31,18,19,23,21,20,16,8,20,-8,-8,-58,-49,-63,-33,-63,-88,-68,-66,-112,-120,-219,-219,-277,-261,-336,-331,-318,-310,-613,-610,-658,-668,-1172,-1181,-2132,-2088,-1270,-366,-314,-224]} 1. Nf3 c5 2. c4 Nf6 3. Nc3 e6 4. e3 d5 5. cxd5 exd5 6. d4 a6 7. g3 c4 8. Bg2 Bb4 9. O-O O-O 10. Ne5 Nc6 11. Bd2 Re8 12. Nxc6 bxc6 13. b3 a5 (13... Bxc3 $5 14. Bxc3 $8 Ne4 $11) 14. bxc4 Ba6 15. Qc2 Bxc4 16. Rfb1 Bxc3 17. Bxc3 Ne4 {[%cal Bf6e4,Be4g5,Bg5e6][%mdl 32]} 18. Bb2 Qf6 {[%cal Oc4d3]} 19. Bc1 ({White should play} 19. Bxe4 $11 Rxe4 20. Ba3) 19... h5 $15 20. f3 Ng5 21. Qd1 {[#]} h4 $1 $36 {[%mdl 2048] White is under strong pressure. Black is much more active.} 22. gxh4 Ne6 23. Ba3 (23. Bd2 $15 {deserves consideration.}) 23... Qxh4 $17 24. Qe1 (24. Kh1 $17 {was called for.}) 24... Qh6 $19 {[%cal Oe6f4]} 25. Qd2 {[#]} Nf4 $1 26. Re1 {[#]} (26. exf4 Re2) 26... Ne2+ $1 {[%mdl 512]} 27. Rxe2 Bxe2 28. Qxe2 $2 (28. Bc1 Bc4 29. e4) 28... Rxe3 ({Not} 28... Qxe3+ 29. Qxe3 Rxe3 30. Bc5 $11) 29. Qb2 Rae8 30. Qc1 Qh4 {Strongly threatening ...Re1+.} 31. Bf1 {[#]} Re2 $1 {[%csl Ge2][%cal Rh4h2][%mdl 512]} 32. Bd6 Qxd4+ $2 (32... Qf2+ 33. Kh1 Qxf3+ (33... Rxa2 34. Rxa2 Qxa2 35. Qxc6 $11) (33... Re1 $2 34. Qxe1 Rxe1 35. Rxe1 $19) 34. Kg1 Qf2+ (34... Qg4+ $2 35. Bg3 $19) 35. Kh1 Re1 (35... Rxa2 36. Rxa2 Qxa2 37. Qxc6 $11) 36. Qxe1 Rxe1 37. Rxe1 Qxe1) 33. Kh1 {[#]} Re1 $1 {[%mdl 512]} 0-1

[Event "Israel Team Championship 2025"]
[Site "Israel"]
[Date "2025.01.18"]
[Round "4"]
[White "Khmelniker, Ilya"]
[Black "Lev, Ronen"]
[Result "1/2-1/2"]
[Annotator "TA"]
[ECO "D11"]
[WhiteElo "2451"]
[BlackElo "2338"]
[PlyCount "66"]
[EventDate "2025.01.07"]
[EventType "team-tourn"]
[EventCountry "ISR"]
[SourceTitle "playchess.com"]
[Source "ChessBase"]
[SourceQuality "1"]
[TimeControl "40/5400+30:1800+30"]

{[%evp 11,66,5,22,14,42,38,36,44,52,42,35,15,16,12,16,0,0,0,0,0,0,0,0,0,11,0,0,0,0,-3,-4,-19,-32,-39,-28,-31,-36,-28,-20,-51,-35,-12,-11,-8,0,-7,-8,-8,0,0,-2,0,12,7,8,4,5]} 1. d4 d5 2. Nf3 Nf6 3. g3 c6 4. Bg2 Bf5 5. c4 e6 6. Nc3 Nbd7 7. Nh4 Bg6 8. Nxg6 hxg6 9. Qd3 dxc4 10. Qxc4 e5 11. e3 exd4 12. exd4 Nb6 13. Qe2+ Be7 14. O-O O-O 15. Rd1 Re8 16. Qc2 Qd7 17. Qb3 Rad8 18. Bf4 Nfd5 19. Bd2 Bf6 20. Ne4 Qf5 21. Nxf6+ Nxf6 {A dynamic duo of knights.} 22. Be1 Rd7 23. a4 Nbd5 24. Rac1 g5 25. Qf3 Qxf3 26. Bxf3 g4 27. Bg2 Re2 28. b4 Rb2 29. Rb1 Ra2 30. Ra1 Rxa1 31. Rxa1 Nc7 {[%cal Oa7a6] [#]} 32. b5 $1 cxb5 33. Bxb7 {Bc6 would now be deadly.} Rxd4 1/2-1/2

[Event "Israel Team Championship 2025"]
[Site "Israel"]
[Date "2025.01.18"]
[Round "4"]
[White "Zanan, Evgeny"]
[Black "Mindlin, Alon"]
[Result "1/2-1/2"]
[Annotator "TA"]
[ECO "E11"]
[WhiteElo "2450"]
[BlackElo "2443"]
[PlyCount "42"]
[EventDate "2025.01.07"]
[EventType "team-tourn"]
[EventCountry "ISR"]
[SourceTitle "playchess.com"]
[Source "ChessBase"]
[SourceQuality "1"]
[TimeControl "40/5400+30:1800+30"]

{[%evp 23,42,29,26,20,32,30,26,29,32,34,40,36,58,29,37,44,29,29,37,27,55]} 1. d4 Nf6 2. c4 e6 3. Nf3 Bb4+ 4. Bd2 Qe7 5. g3 Nc6 6. Nc3 Bxc3 7. Bxc3 Ne4 8. Rc1 d6 9. Bg2 O-O 10. d5 Nxc3 11. Rxc3 Nb8 12. dxe6 fxe6 13. Nd4 {[%cal Bf3d4,Bd4c2,Bc2b4][%mdl 32]} e5 14. Nc2 Nc6 {[%cal Bb8c6,Bc6d8,Bd8e6][%mdl 32]} 15. b4 {[%cal Bb2b4,Bb4b5][%mdl 32]} Be6 16. b5 Nd8 17. O-O Kh8 18. Nb4 Qd7 19. a4 Bh3 20. c5 {and Bxh3 would now be decisive} Bxg2 21. Kxg2 Ne6 1/2-1/2

[Event "Israel Team Championship 2025"]
[Site "Israel"]
[Date "2025.01.18"]
[Round "4"]
[White "Bakalchuk, Johnatan"]
[Black "Guz, Ari"]
[Result "1/2-1/2"]
[Annotator "TA"]
[ECO "D00"]
[WhiteElo "2445"]
[BlackElo "2336"]
[PlyCount "108"]
[EventDate "2025.01.07"]
[EventType "team-tourn"]
[EventCountry "ISR"]
[SourceTitle "playchess.com"]
[Source "ChessBase"]
[SourceQuality "1"]
[TimeControl "40/5400+30:1800+30"]

{[%evp 9,108,-12,-4,0,27,30,41,24,34,35,31,35,66,43,53,29,43,44,46,41,39,49,37,40,63,54,66,51,82,72,173,177,230,232,245,245,270,270,297,309,325,268,300,283,298,189,202,196,235,235,313,359,359,359,357,232,232,222,364,222,392,360,377,343,213,287,397,359,510,500,500,253,396,397,904,753,1031,979,1325,1034,1064,975,1726,1574,1552,1728,1146,879,725,89,134,33,33,0,0,0,0,0,0,0,0]} 1. d4 d5 2. Nc3 Nf6 3. Bf4 a6 4. e3 b5 5. h4 e6 6. g4 {[%cal Bg2g4,Bg4g5][%mdl 32]} Bb4 7. g5 Ne4 {[%cal Oc7c5]} 8. Nge2 Nd7 9. a3 Nxc3 10. Nxc3 Bd6 11. Qg4 Qe7 12. Bd3 Bb7 13. Bxd6 Qxd6 14. h5 c5 15. dxc5 Nxc5 {[%cal Od5d4]} 16. O-O-O {[%cal Ba1d1,Bd1d3,Bd3d4,Bd4b4][%mdl 32]} Rc8 17. Kb1 {White is more active.} Nxd3 18. Rxd3 Rc4 $1 19. Rd4 Rxc3 20. bxc3 $18 e5 (20... O-O 21. h6 Rc8 22. hxg7 Qe5) 21. Rb4 O-O 22. h6 g6 23. f4 Re8 24. Rd1 Bc6 25. fxe5 Qxe5 26. Rd3 Qe6 27. Qxe6 Rxe6 {[%mdl 4096] Endgame KRR-KRB} 28. Rf4 f5 {[#]} 29. a4 $1 Kf7 (29... Re5 30. Kc1) 30. axb5 axb5 31. Kb2 Ke7 32. Rf1 Kd6 33. Ra1 Re7 {Inhibits Ra7.} (33... Bb7 34. Ra7 Re7) 34. Kc1 Kc7 $2 (34... Bb7 {is a better defense.} 35. Kd2 Kc5) 35. Ra7+ Bb7 36. Rxd5 Kb6 {[#]} (36... Rxe3 $2 37. Rxb5 Rh3 38. Rbxb7+ $18 (38. Raxb7+ Kc6 $18)) 37. Rxb7+ $1 Rxb7 {KR-KR. White is a pawn up.} (37... Kxb7 38. Rd6) 38. Kd2 Kc6 {[#]} (38... Rf7 $142 39. Rd4 Kc6) 39. Rd8 $1 Re7 40. Kd3 Ra7 (40... Kc7 $142 41. Rg8 Rd7+ 42. Ke2 Kd6) 41. Rg8 Ra4 $2 (41... Ra1 42. c4 bxc4+ 43. Kxc4 Rg1) 42. Rg7 Rg4 43. Rxh7 Rxg5 44. Rh8 Rh5 45. h7 Kb7 {Inhibits Rc8.} 46. c4 bxc4+ 47. Kxc4 g5 {[%cal Bg6g5,Bg5g4,Bg4g3,Bg3g2][%mdl 32]} 48. Kd3 {c4 is the strong threat.} Rh2 49. c4 $2 (49. e4 $18 {is the precise move to win.} Rh3+ 50. Kd4 fxe4 51. Kxe4) 49... g4 $16 {[#]} 50. c5 (50. e4 $1 $16 {[%cal Re4f5]} f4 51. Rf8 Rh3+ 52. Kd2 Rxh7 53. Rxf4) 50... g3 $14 51. c6+ Kc7 $1 (51... Kxc6 $2 {perishes.} 52. Rc8+ Kd6 53. h8=Q $18 (53. h8=R Ra2 $18)) 52. Kd4 g2 53. Rg8 Rxh7 {( -> ...Rh4+)} 54. Kd5 Re7 1/2-1/2

[Event "Israel Team Championship 2025"]
[Site "Israel"]
[Date "2025.01.15"]
[Round "4"]
[White "Baron, Tal"]
[Black "Haimovich, Tal"]
[Result "1/2-1/2"]
[Annotator "TA"]
[ECO "C70"]
[WhiteElo "2441"]
[BlackElo "2322"]
[PlyCount "63"]
[EventDate "2025.01.07"]
[EventType "team-tourn"]
[EventCountry "ISR"]
[SourceTitle "playchess.com"]
[Source "ChessBase"]
[SourceQuality "1"]
[TimeControl "40/5400+30:1800+30"]

{[%evp 9,63,57,59,62,64,68,66,65,53,51,65,67,81,66,97,64,99,52,39,0,0,0,-22,-9,-12,-12,0,0,0,-5,0,0,0,0,0,0,0,0,0,0,0,0,0,0,0,0,0,0,0,0,0,-6,0,0,0,-3]} 1. e4 e5 2. Nf3 Nc6 3. Bb5 {[%cal Bf1b5,Bb5a4,Ba4b3][%mdl 32]} a6 4. Ba4 f5 5. d4 exd4 6. e5 {[%cal Oe1g1]} (6. exf5 Qe7+ 7. Kf1 b5 $11) 6... b5 7. Bb3 {[%cal Oe1g1]} Na5 8. Qxd4 Bb7 9. Bd5 c6 10. Bxg8 $1 Rxg8 11. Qd3 {White is more active.} ({Much worse is} 11. Bg5 $6 Qc7 $11) 11... g6 12. Nc3 d5 13. exd6 (13. O-O $16) 13... Qxd6 $14 14. Qe2+ (14. Qxd6 $14 Bxd6 15. Bg5) 14... Qe7 $11 15. Be3 Nc4 16. O-O-O {[%cal Ba1d1,Bd1d3,Bd3c3,Bc3c4][%mdl 32]} Nxe3 17. fxe3 Bg7 18. Rd3 Bxc3 19. bxc3 Rd8 20. Rhd1 Rd5 21. c4 bxc4 22. Rc3 $1 Qb4 23. Qxc4 (23. Rxc4 {leads to mate.} Qa3+ (23... Rxd1+ $2 24. Kxd1 Qb1+ 25. Kd2 $19) 24. Kb1 Rb5+) 23... Qxc4 24. Rxc4 {Threatens to win with Rxd5.} Rxd1+ 25. Kxd1 {[%mdl 4096] Endgame KRB-KRN} Kd7 26. Nd4 Re8 27. Kd2 Re5 28. Nb3 Kd6 29. Rd4+ Kc7 30. Rc4 Kd6 31. Rd4+ Kc7 32. Rc4 1/2-1/2

[Event "Israel Team Championship 2025"]
[Site "Israel"]
[Date "2025.01.15"]
[Round "4"]
[White "Gershon, Alik"]
[Black "Tzidkiya, Yeshaayahu"]
[Result "0-1"]
[Annotator "TA"]
[ECO "D79"]
[WhiteElo "2433"]
[BlackElo "2479"]
[PlyCount "88"]
[EventDate "2025.01.07"]
[EventType "team-tourn"]
[EventCountry "ISR"]
[SourceTitle "playchess.com"]
[Source "ChessBase"]
[SourceQuality "1"]
[TimeControl "40/5400+30:1800+30"]

{[%evp 21,88,20,3,-14,0,0,0,0,0,0,0,-13,11,0,0,-10,0,0,0,0,0,-27,-23,-20,-24,-23,-30,-34,-41,-81,-68,-154,-139,-286,-290,-349,-334,-319,-254,-1245,-1153,-1092,-1048,-1048,-865,-1639,-1316,-5164,-29958,-29963,-29959,-29967,-29969,-29962,-12277,-29978,-29979,-29979,-29980,-29980,-29981,-29981,-29982,-29985,-29986,-29986,-29987,-29987,-29988]} 1. c4 Nf6 2. Nc3 g6 3. g3 Bg7 4. Bg2 O-O 5. d4 c6 6. Nf3 d5 7. cxd5 cxd5 8. Ne5 Nc6 9. Nxc6 bxc6 10. O-O Bf5 11. Na4 Nd7 12. Be3 Nb6 13. Rc1 Rc8 14. Nxb6 Qxb6 15. Qd2 a5 16. b3 a4 17. b4 a3 $1 18. Qc3 Qa6 19. Bf3 Qa4 20. Qc5 {[%cal Og3g4]} Rfe8 21. Rc3 e5 22. dxe5 $1 Bf8 23. Qd4 Qxb4 24. Rfc1 Qb2 $36 {[%mdl 2048] Black is pushing.} 25. g4 Bb1 {Black is more active.} 26. Bxd5 Bxa2 $17 (26... cxd5 $2 27. Rxc8 $18) 27. Bxc6 (27. Bxa2 $17 {was the only chance.} Qxa2 28. R3c2) 27... Red8 $19 28. Qb6 Rb8 29. Qa7 Qxe2 30. Bb6 $2 (30. h3 Rd1+ 31. Kg2 Rxc1 32. Rxc1) 30... Rd1+ 31. Rxd1 Qxd1+ 32. Kg2 Bd5+ 33. Kh3 {[#]} h5 $1 {[%csl Gh5][%cal Rd1g4]} 34. Rg3 (34. Qd7 Qf1+) 34... hxg4+ 35. Kh4 Rxb6 36. Bxd5 Qxd5 37. Qxb6 Qxe5 {KQR-KQB} (37... a2 $142 38. Qb2 Qd1 (38... Be7+ $2 39. Kxg4 Qd1+ 40. Kh3 $19) 39. Re3 a1=Q (39... a1=B $2 40. Qe2 $19) 40. Qxa1 Qxa1 41. Kxg4 Bc5 42. Kf4 Bxe3+ 43. fxe3 Qf1+ 44. Ke4 Qg2+ 45. Kd4 Qxh2 46. Ke4 Qc2+ 47. Kf3 Qf5+ 48. Kg2 g5 (48... Qxe5 {gets mated.} 49. Kf3 f5 50. Kf2 Qe4 51. Kg3 Qxe3+ 52. Kg2 f4 53. Kf1 Qd2 54. Kg1 Qc2 55. Kh1 f3 56. Kg1 Qg2#) 49. e6 fxe6 (49... Qxe6 50. Kf3 g4+ 51. Kf4 f5 52. Kg5 g3 53. Kf4 g2 54. e4 Qxe4+ 55. Kg5 g1=Q+ 56. Kh6 Qh4#) 50. Kg3 g4 51. Kh4 Qf3 52. e4 g3 (52... Qxe4 53. Kg3 Qf3+ 54. Kh4 Kg7 55. Kg5 Qg3 56. Kh5 Kf6 57. Kh6 Qh4#) 53. Kh3 g2+ (53... Qxe4 54. Kxg3 Kh7 55. Kh3 Kg6 56. Kh2 Kf5 57. Kg1 Kg4 58. Kf2 Kh3 59. Kf1 Kg3 60. Kg1 Qg2#) 54. Kh2 e5 (54... Qxe4 $2 55. Kg1 Qg4 56. Kh2 g1=Q#) 55. Kg1 Qf1+ 56. Kh2 g1=Q#) 38. Re3 Qh5+ 39. Kg3 Qh3+ 40. Kf4 Bh6+ 41. Ke4 Bxe3 42. Qb8+ Kh7 43. fxe3 Qf3+ 44. Kd3 a2 0-1

[Event "Israel Team Championship 2025"]
[Site "Israel"]
[Date "2025.01.15"]
[Round "4"]
[White "Aizenberg, Benny"]
[Black "Tifferet, Shakked"]
[Result "1-0"]
[Annotator "TA"]
[ECO "C92"]
[WhiteElo "2426"]
[BlackElo "2305"]
[PlyCount "73"]
[EventDate "2025.01.07"]
[EventType "team-tourn"]
[EventCountry "ISR"]
[SourceTitle "playchess.com"]
[Source "ChessBase"]
[SourceQuality "1"]
[TimeControl "40/5400+30:1800+30"]

{[%evp 26,73,30,14,3,0,0,0,0,0,12,0,6,-23,0,0,25,-1,36,31,54,43,51,27,19,15,22,10,406,434,456,468,446,475,982,979,983,975,912,921,29962,29960,29969,29969,29964,5381,29995,29995,29997,29998]} 1. e4 e5 2. Nf3 Nc6 3. Bb5 a6 4. Ba4 Nf6 5. O-O Be7 6. Re1 b5 7. Bb3 d6 8. c3 O-O 9. h3 Bb7 10. d4 Re8 11. Ng5 Rf8 12. Nf3 Re8 13. Nbd2 Bf8 14. a4 Na5 15. Bc2 exd4 16. cxd4 b4 $1 17. b3 g6 18. Bb2 Bg7 19. Bd3 Nd7 20. Qc2 d5 21. Rac1 dxe4 22. Bxe4 Bxe4 23. Nxe4 {[%cal Od4d5]} Nf6 24. Nxf6+ Qxf6 25. Re5 Rxe5 26. dxe5 Qd8 $2 {[%mdl 8192]} (26... Qe7 $1 $11 {and Black stays safe.}) 27. e6 $1 $18 (27. Qxc7 Nxb3 28. Rc2 Qxc7 29. Rxc7 h6 $16) 27... Bxb2 28. exf7+ (28. Qxb2 fxe6 29. Nd2 Qd7 $16) 28... Kxf7 29. Qxb2 {Strongly threatening Qe5.} Qd6 (29... c6 $142 30. Qe5 Ra7 31. Ng5+ Kg8) 30. Ng5+ {[%cal Bf3g5,Bg5e4,Be4f6,Bf6d5][%mdl 32]} Kg8 31. Ne4 Qe7 32. Nf6+ Kf7 {[%cal Bg8f7,Bf7e6,Be6f5,Bf5g5][%mdl 32]} 33. Nd5 Qd6 34. Rxc7+ Ke6 {[#]} 35. Qd4 $1 Kf5 (35... Qxd5 36. Qe3+) 36. g4+ Kg5 37. Qe3+ 1-0

[Event "Israel Team Championship 2025"]
[Site "Israel"]
[Date "2025.01.18"]
[Round "4"]
[White "Soffer, Ram"]
[Black "Kargin, Arseny"]
[Result "1/2-1/2"]
[Annotator "TA"]
[ECO "B51"]
[WhiteElo "2423"]
[BlackElo "2368"]
[PlyCount "32"]
[EventDate "2025.01.07"]
[EventType "team-tourn"]
[EventCountry "ISR"]
[SourceTitle "playchess.com"]
[Source "ChessBase"]
[SourceQuality "1"]
[TimeControl "40/5400+30:1800+30"]

{[%evp 9,32,16,20,18,11,16,30,28,35,-27,-14,-23,-11,-32,-32,-25,0,0,6,0,21,0,18,0,0]} 1. e4 c5 2. Nf3 d6 3. Bb5+ Nd7 4. O-O a6 5. Bd3 Ngf6 6. c3 b5 7. Bc2 Bb7 8. Re1 c4 9. b3 (9. a4 $14) 9... e6 $1 $11 10. Qe2 Qc7 11. a4 cxb3 12. Bxb3 Nc5 13. Bc2 Nxa4 14. Bxa4 bxa4 15. d3 {[%cal Oc3c4]} Be7 16. c4 {[%mdl 1024] White has compensation.} O-O 1/2-1/2

[Event "Israel Team Championship 2025"]
[Site "Israel"]
[Date "2025.01.18"]
[Round "4"]
[White "Shohat, Yotam"]
[Black "Sokolovsky, Yahli"]
[Result "1/2-1/2"]
[Annotator "TA"]
[ECO "B90"]
[WhiteElo "2404"]
[BlackElo "2535"]
[PlyCount "38"]
[EventDate "2025.01.07"]
[EventType "team-tourn"]
[EventCountry "ISR"]
[SourceTitle "playchess.com"]
[Source "ChessBase"]
[SourceQuality "1"]
[TimeControl "40/5400+30:1800+30"]

{[%evp 17,38,15,20,20,23,24,25,22,37,43,51,25,56,0,61,46,54,58,48,56,89,87,87]} 1. e4 c5 2. Nf3 d6 3. d4 cxd4 4. Nxd4 Nf6 5. Nc3 a6 6. Be3 e5 7. Nb3 Be6 8. f3 h5 9. Qd2 Nbd7 10. Nd5 Bxd5 11. exd5 g6 12. O-O-O Bg7 13. Kb1 Qc7 14. Be2 (14. h3 $5) 14... O-O 15. h4 (15. g4 $1 $14) 15... a5 ({Better is} 15... Rfe8 $11) 16. a4 $1 $14 Nb6 17. Bxb6 Qxb6 18. Bb5 Kh7 {[#]} 19. g4 $1 Kg8 (19... Qd8 20. Rhg1) 1/2-1/2

[Event "Israel Team Championship 2025"]
[Site "Israel"]
[Date "2025.01.18"]
[Round "4"]
[White "Efroimski, Marsel"]
[Black "Mesropov, Konstantin"]
[Result "1/2-1/2"]
[Annotator "TA"]
[ECO "C10"]
[WhiteElo "2389"]
[BlackElo "2450"]
[PlyCount "37"]
[EventDate "2025.01.07"]
[EventType "team-tourn"]
[EventCountry "ISR"]
[SourceTitle "playchess.com"]
[Source "ChessBase"]
[SourceQuality "1"]
[TimeControl "40/5400+30:1800+30"]

{[%evp 9,37,-4,-1,-23,-13,-27,-32,-37,-25,-22,-23,-21,-15,-56,-35,-73,-68,-96,-87,-121,-31,-32,-38,-36,-43,-24,-31,-19,-30,-62]} 1. e4 e6 2. d4 d5 3. Nc3 h6 4. Nf3 Nf6 5. e5 Ne4 6. Bd3 Bb4 7. O-O Nxc3 8. bxc3 Bxc3 9. Rb1 Nc6 10. Be3 Na5 11. g3 Bd7 12. Nh4 Qe7 {[%cal Oc7c5]} 13. f4 O-O-O 14. f5 {[#]} Nc4 (14... Qa3 $1 $17 15. Qg4 Rhg8) 15. Bxc4 $15 dxc4 16. Qe2 Ba5 17. Qxc4 Qa3 18. Qb3 Qxb3 19. axb3 1/2-1/2

[Event "Israel Team Championship 2025"]
[Site "Israel"]
[Date "2025.01.15"]
[Round "4"]
[White "Milikow, Yoav"]
[Black "Deutsch, Eyal"]
[Result "1/2-1/2"]
[Annotator "TA"]
[ECO "E43"]
[WhiteElo "2362"]
[BlackElo "2286"]
[PlyCount "22"]
[EventDate "2025.01.07"]
[EventType "team-tourn"]
[EventCountry "ISR"]
[SourceTitle "playchess.com"]
[Source "ChessBase"]
[SourceQuality "1"]
[TimeControl "40/5400+30:1800+30"]

{[%evp 12,22,-57,-51,-58,-91,-74,-155,-154,-131,-112,-120,-109]} 1. d4 Nf6 2. c4 e6 3. Nc3 Bb4 4. e3 b6 5. Bd3 Bb7 6. Nge2 Bxg2 7. Rg1 Bf3 8. Rxg7 Nh5 {Prevents Rg3} 9. Rxh7 ({Better is} 9. Rg1) 9... Rxh7 $17 10. Bxh7 Bxc3+ 11. bxc3 Qh4 1/2-1/2